[Event "Frauenbundesliga 2024-25"]
[Site "Germany"]
[Date "2025.01.25"]
[Round "3.3"]
[White "Lach, Aleksandra"]
[Black "Braeutigam, Katerina"]
[Result "1-0"]
[Annotator "TA"]
[ECO "A03"]
[WhiteElo "2214"]
[BlackElo "1947"]
[PlyCount "89"]
[EventDate "2024.11.06"]
[EventType "team-tourn"]
[EventCountry "GER"]
[SourceTitle "playchess.com"]
[Source "ChessBase"]
[SourceQuality "1"]
[WhiteTeam "Harksheide"]
[BlackTeam "Dippoldiswalde"]
[TimeControl "40/5400+30:1800+30"]

{[%evp 9,89,10,0,-47,0,-3,0,-5,31,38,49,54,43,36,156,150,149,135,141,150,154,154,170,177,181,154,238,253,249,183,225,183,181,174,160,102,128,133,107,114,200,201,274,275,277,268,254,227,229,216,231,227,282,289,318,308,318,314,308,298,325,317,358,369,353,314,310,305,523,520,521,504,1505,1512,1058,720,5552,5543,29987,29985,29985,29986]} 1. f4 {[%emt 0:00:22]} d5 {[%emt 0:01:37]} 2. Nf3 {[%emt 0:00:13]} g6 {[%emt 0:01:27]} 3. e3 {[%emt 0:00:34]} Bg7 {[%emt 0:00:44]} 4. Be2 {[%emt 0:04:13]} Nd7 {[%emt 0:04:00]} 5. O-O {[%emt 0:22:45]} e5 {[%emt 0:08:05]} 6. d4 {[%emt 0:01:06] A03: Bird's Opening with 1...d5.} (6. fxe5 $11 {might be stronger.} Nxe5 7. Nxe5 Bxe5 8. d4) 6... e4 {[%emt 0:03:18]} 7. Ne5 {[%emt 0:02:30]} c6 $146 {[%emt 0:25:19]} (7... Nxe5 8. fxe5 Be6 {½-½ Pucher,M (1895)-Kratschmer,H (2098) Graz op-B 2006 (2.1)}) 8. c4 {[%emt 0:09:15] The position is equal.} a6 {[%emt 0:07:10]} 9. cxd5 {[%emt 0:19:35]} cxd5 {[%emt 0:00:21]} 10. Qb3 {[%emt 0:01:34]} Ne7 {[%emt 0:04:37]} 11. Nc3 {[%emt 0:03:33]} f6 {[%emt 0:05:40]} (11... O-O $14) 12. Nxd7 {[%emt 0:04:07]} Qxd7 {[%emt 0:00:17]} 13. Bd2 {[%emt 0:05:19]} Qe6 {[%emt 0:20:42]} 14. Na4 {[%emt 0:02:37]} O-O {[%emt 0:04:03]} 15. Nc5 {[%emt 0:03:42][%csl LRb7,LRe6]} Qf7 {[%emt 0:00:44] [#]} 16. Nxe4 $1 {[%emt 0:00:54]} Nf5 {[%emt 0:06:05][%cal Of8e8]} (16... dxe4 $2 17. Bc4 Nc6 18. Bxf7+ $18) (16... Bd7 17. Rfc1) 17. Nc5 {[%emt 0:04:26]} Re8 {[%emt 0:01:12]} (17... Nd6 $16 18. Rfc1 b5) 18. Bf3 $18 {[%emt 0:00:19]} Ne7 {[%emt 0:02:25]} 19. Na4 {[%emt 0:03:20]} (19. Nxb7 $6 Rb8) 19... Rb8 {[%emt 0:01:19]} 20. Nb6 {[%emt 0:03:17][%cal Of1c1]} Be6 {[%emt 0:00:38]} 21. Rac1 {[%emt 0:01:46]} Nc8 {[%emt 0:00:35]} 22. Na4 {[%emt 0:04:27] White is much more active.} (22. Nxd5 $6 Rd8 $16) ({White should try} 22. Rc3) 22... Nd6 $16 {[%emt 0:00:24]} 23. Nc5 {[%emt 0:00:34]} Nc4 {[%emt 0:00:41]} 24. Rfd1 $36 {[%emt 0:00:42][%mdl 2048] White is on the roll.} Nxd2 {[%emt 0:00:28]} (24... Rec8 $16 25. Rc2 Rc6) 25. Rxd2 $18 {[%emt 0:00:01]} Red8 {[%emt 0:00:28]} 26. Nxe6 {[%emt 0:01:05]} Qxe6 {[%emt 0:00:12]} 27. Rc5 {[%emt 0:00:12][%cal Rf3d5]} Kh8 {[%emt 0:00:48]} 28. Rxd5 {[%emt 0:01:06]} Re8 {[%emt 0:00:26]} 29. Kf2 {[%emt 0:00:15]} Bh6 {[%emt 0:00:34][%cal Oh6f4]} 30. Rc5 {[%emt 0:00:38]} Qe7 {[%emt 0:00:30][%cal Oh6f4]} 31. g3 {[%emt 0:00:40]} f5 {[%emt 0:00:30]} 32. Re5 {[%emt 0:00:28]} Qd7 {[%emt 0:00:29]} 33. Rxe8+ {[%emt 0:00:36]} Qxe8 {[%emt 0:00:07]} 34. d5 {[%emt 0:00:15][%cal Bd4d5,Bd5d6,Bd6d7][%mdl 32]} (34. Bxb7 Qe7 $11) 34... Qd7 {[%emt 0:00:51]} 35. d6 {[%emt 0:00:30]} Bg7 {[%emt 0:00:37]} 36. Qb6 {[%emt 0:00:38]} Bf6 {[%emt 0:00:25]} 37. Qc7 {[%emt 0:00:39]} Rd8 {[%emt 0:00:38] Hoping for ...Qxc7.} 38. Qxb7 {[%emt 0:00:23]} ({Don't do} 38. Bxb7 $6 Qxc7 39. dxc7 Rxd2+ 40. Kf3 Rc2 41. c8=Q+ (41. c8=B $2 {is the wrong capture.} a5 $19) (41. c8=R+ Rxc8 42. Bxc8 a5 $16) 41... Rxc8 42. Bxc8 Bxb2 43. Bxa6 h6 $18) 38... Qa4 {[%emt 0:00:27]} (38... Qxb7 39. Bxb7 Bxb2 40. Rxb2 Rxd6) 39. Qf7 {[%emt 0:00:40]} Bg7 {[%emt 0:00:26]} 40. d7 {[%emt 0:00:26]} Qb5 {[%emt 0:00:35]} (40... Qb4 $142) 41. Qe7 {[%emt 0:09:35]} Qb8 {[%emt 0:02:08]} 42. b3 {[%emt 0:03:39] Black must now prevent Rc2.} a5 {[%emt 0:04:37]} 43. Rc2 {[%emt 0:01:49] Threatening mate with Qe6.} Bf8 {[%emt 0:00:33]} 44. Qf6+ {[%emt 0:00:30]} Bg7 45. Qe6 {[%emt 0:00:30] Weighted Error Value: White=0.19 (very precise) /Black=0.73  Mistake:       	White=1     	Black=5      Inaccurate:     	---       	Black=3      OK:         	White=20    	Black=10     Best:        	White=2     	Black=4      Brilliant:      	White=1     	---} 1-0

[Event "Frauenbundesliga 2024-25"]
[Site "Germany"]
[Date "2025.01.25"]
[Round "3.3"]
[White "Nebolsina, Vera"]
[Black "Muetsch, Annmarie"]
[Result "1-0"]
[Annotator "TA"]
[ECO "B10"]
[WhiteElo "2213"]
[BlackElo "2252"]
[PlyCount "73"]
[EventDate "2024.11.06"]
[EventType "team-tourn"]
[EventCountry "GER"]
[SourceTitle "playchess.com"]
[Source "ChessBase"]
[SourceQuality "1"]
[WhiteTeam "Schachfreunde Deizisau"]
[BlackTeam "SG Solingen"]
[TimeControl "40/5400+30:1800+30"]

{[%evp 9,73,0,-2,13,29,-17,-5,-16,3,-18,5,6,13,-7,-5,-12,-7,0,0,-16,0,-3,0,-19,0,0,8,-7,7,0,16,13,17,0,2,0,120,120,255,245,330,333,311,260,331,315,347,350,1128,1119,1862,1808,29983,29983,29986,29987,29987,29988,29988,29989,29989,29990,29990,29991,29991,29992]} 1. e4 {[%emt 0:00:08]} c6 {[%emt 0:00:33]} 2. Nf3 {[%emt 0:00:12]} d5 {[%emt 0:00:19]} 3. d3 {[%emt 0:00:14]} dxe4 {[%emt 0:00:19]} 4. dxe4 {[%emt 0:00:06]} Qxd1+ {[%emt 0:00:07]} 5. Kxd1 {[%emt 0:00:02]} Nf6 {[%emt 0:00:18]} 6. Nfd2 {[%emt 0:00:51] B10: Caro-Kann: 2 d3 and 2 c4.} g6 {[%emt 0:00:49]} 7. Bc4 $146 {[%emt 0:07:18]} (7. f3 {feels stronger.}) (7. f3 Bh6 8. a4 O-O 9. c3 Be6 10. Kc2 Rd8 11. Na3 Nbd7 12. Bc4 Nc5 13. Nb3 Nxb3 14. Kxb3 Bxc1 15. Raxc1 Bxc4+ 16. Nxc4 {½-½ Xiong,J (2692)-Aravindh,C (2627) Titled Tuesday intern op 13th Jun Late blitz 2023 (7)}) 7... Bh6 {[%emt 0:02:44]} 8. Ke2 {[%emt 0:03:43] The position is equal.} Nbd7 {[%emt 0:02:56]} 9. a4 {[%emt 0:08:04]} a5 {[%emt 0:00:56]} 10. f3 {[%emt 0:01:31]} Ne5 {[%emt 0:06:20]} 11. Ba2 {[%emt 0:02:22]} b6 {[%emt 0:01:38]} 12. Nc4 {[%emt 0:03:28]} (12. Na3 Nfd7 13. Ndc4 Bxc1 14. Raxc1 Nxc4 15. Bxc4 Nc5 16. b3) 12... Bxc1 {[%emt 0:02:14]} (12... Nxc4 {simplifies} 13. Bxc4 Bxc1 14. Rxc1 Nd7) 13. Rxc1 {[%emt 0:00:11]} Ba6 {[%emt 0:01:12]} 14. Nbd2 {[%emt 0:02:54]} g5 {[%emt 0:14:24]} 15. Ke3 {[%emt 0:08:35]} Nfd7 {[%emt 0:02:45] A sharp opening} 16. h4 {[%emt 0:01:01]} gxh4 {[%emt 0:03:02]} 17. Rh1 {[%emt 0:00:09]} Bxc4 {[%emt 0:23:47]} 18. Nxc4 {[%emt 0:02:01]} Rg8 {[%emt 0:02:52]} 19. Rag1 {[%emt 0:06:20]} Nxc4+ {[%emt 0:06:54]} 20. Bxc4 {[%emt 0:00:28]} Ne5 {[%emt 0:00:04]} 21. Be2 {[%emt 0:04:31][%mdl 1024] White has compensation.} Ng6 {[%emt 0:02:38]} 22. f4 {[%emt 0:06:06][%cal Bf3f4,Bf4f5][%mdl 32]} e5 {[%emt 0:02:04] [#]} (22... Rg7 $11) 23. f5 $1 $16 {[%emt 0:01:35]} Nf4 {[%emt 0:01:01] This move loses the game for Black.} (23... Nf8 $16) 24. Bf3 $18 {[%emt 0:00:08]} Ke7 {[%emt 0:09:17]} 25. Rxh4 {[%emt 0:01:40]} Rg3 {[%emt 0:00:33]} 26. Rh6 {[%emt 0:03:52]} (26. Rxh7 b5 27. Kf2 Rag8 $18) 26... Rc8 {[%emt 0:02:42]} 27. Rd1 {[%emt 0:04:29]} ({Resist} 27. Rxh7 $6 Rcg8 28. Kf2 b5 29. axb5 cxb5 $18) 27... b5 {[%emt 0:10:44]} 28. Kf2 {[%emt 0:02:36]} ({Not} 28. Rxh7 Rcg8 $18) 28... Rcg8 $2 {[%emt 0:00:14]} (28... Rgg8 29. g3 (29. Rxh7 Rh8 $18) 29... Ng6 30. fxg6 hxg6) 29. Rxc6 {[%emt 0:00:48] [#]} Rxg2+ {[%emt 0:00:54]} 30. Bxg2 {[%emt 0:00:08] f6+ would kill now.} Rxg2+ {[%emt 0:00:06][%mdl 4096] Endgame KRR-KRN} 31. Kf3 {[%emt 0:00:27] White mates.} f6 {[%emt 0:00:39]} 32. axb5 {[%emt 0:02:12]} Rh2 {[%emt 0:00:48]} 33. Rc7+ {[%emt 0:04:40]} Ke8 {[%emt 0:00:07]} 34. b6 {[%emt 0:02:50]} Rh3+ {[%emt 0:00:07]} 35. Kf2 {[%emt 0:00:07]} Rh2+ {[%emt 0:00:09]} 36. Kg1 {[%emt 0:00:41]} Rg2+ {[%emt 0:00:18]} 37. Kf1 {[%emt 0:04:09] Weighted Error Value: White=0.08 (flawless) /Black=0.66  Mistake:       	White=1     	Black=3      Inaccurate:     	---       	Black=3      OK:         	White=4     	Black=6      Best:        	White=2     	Black=1      Strong:       	White=1     	---} 1-0

[Event "Frauenbundesliga 2024-25"]
[Site "Germany"]
[Date "2025.01.25"]
[Round "3.4"]
[White "Kulon, Klaudia"]
[Black "Salimova, Nurgyul"]
[Result "1/2-1/2"]
[Annotator "TA"]
[ECO "D02"]
[WhiteElo "2393"]
[BlackElo "2402"]
[PlyCount "119"]
[EventDate "2024.11.06"]
[EventType "team-tourn"]
[EventCountry "GER"]
[SourceTitle "playchess.com"]
[Source "ChessBase"]
[SourceQuality "1"]
[WhiteTeam "Bad Koenigshofen"]
[BlackTeam "Baden-Baden"]
[TimeControl "40/5400+30:1800+30"]

{[%evp 9,119,-8,0,0,0,-18,0,-33,-35,-23,-18,-10,0,0,0,0,4,0,16,8,21,28,19,8,18,0,0,0,0,-37,14,0,0,2,0,4,54,55,54,44,60,22,24,0,0,0,108,108,113,106,127,134,124,115,143,111,126,101,183,165,171,72,108,0,59,37,131,134,136,58,77,77,66,62,70,64,62,66,80,89,267,283,295,289,306,304,302,264,294,256,281,259,216,69,69,8,8,6,45,10,289,0,45,0,289,-10,-10,-10,-10,-10,-10,-10]} 1. d4 {[%emt 0:00:03]} d5 {[%emt 0:00:51]} 2. Nf3 {[%emt 0:00:08]} c5 {[%emt 0:01:16]} 3. Bf4 {[%emt 0:02:21]} cxd4 {[%emt 0:02:19]} 4. Bxb8 {[%emt 0:04:21]} Qa5+ {[%emt 0:11:03]} 5. c3 {[%emt 0:01:44]} Rxb8 {[%emt 0:02:38]} 6. Qxd4 {[%emt 0:01:05] D02: 1 d4 d5 2 Nf3 sidelines, including 2...Nf6 3 g3 and 2...Nf6 3 Bf4.} Nf6 {[%emt 0:03:15]} 7. Nbd2 {[%emt 0:02:41]} g6 $146 {[%emt 0:16:49]} (7... Bf5 8. Qf4 Rc8 9. Qxf5 e6 10. Qd3 b5 11. e3 a6 12. Be2 Bd6 13. Nd4 g6 {1-0 Pauco,V (1819)-Ballo,R (1877) SVK-chT2C 2122 2021 (5.5)}) 8. Qe5 {[%emt 0:22:07]} Ra8 {[%emt 0:01:27]} 9. e4 {[%emt 0:00:36]} Bg7 {[%emt 0:05:52] ...0-0 is in the air} 10. Nc4 {[%emt 0:06:34]} Qd8 {[%emt 0:02:32]} (10... dxc4 $2 11. Qxa5 O-O 12. Bxc4 $18) 11. Rd1 {[%emt 0:00:49][%cal Rd1d5]} O-O $1 {[%emt 0:01:57]} 12. exd5 {[%emt 0:01:44]} b5 {[%emt 0:08:14][%cal Of6e8] ...Ne8! is the strong threat. Black sacrificed a pawn} 13. Ne3 {[%emt 0:02:45]} b4 {[%emt 0:00:48]} 14. cxb4 {[%emt 0:03:53]} Ne8 {[%emt 0:08:54]} 15. Qe4 {[%emt 0:03:20][%cal Od5d6]} Nd6 {[%emt 0:00:41]} 16. Qc2 {[%emt 0:02:46]} Qb6 {[%emt 0:04:26] Inhibits Nd4.} 17. a3 {[%emt 0:09:55]} a5 {[%emt 0:07:36]} 18. Qc5 {[%emt 0:03:23]} Rb8 {[%emt 0:02:00][%cal Ra5b4]} 19. Nd4 {[%emt 0:08:07]} Bd7 {[%emt 0:01:58]} (19... axb4 $15 20. Qxb6 Rxb6) 20. Qxb6 {[%emt 0:05:39]} Rxb6 {[%emt 0:00:05]} 21. b3 {[%emt 0:00:06]} axb4 {[%emt 0:06:00]} 22. a4 {[%emt 0:00:31]} Ne4 {[%emt 0:03:38]} (22... Rc8 $11) 23. Bc4 $1 $14 {[%emt 0:03:21]} Rc8 {[%emt 0:05:05]} 24. O-O {[%emt 0:01:08][%cal Od4c6]} Nd6 {[%emt 0:00:15]} 25. a5 {[%emt 0:10:25]} Rbb8 {[%emt 0:00:08]} 26. Nc6 {[%emt 0:02:18]} Bxc6 {[%emt 0:00:07]} 27. dxc6 {[%emt 0:00:03]} Nxc4 {[%emt 0:03:05]} (27... Rxc6 $11 28. Nd5 Kf8) 28. Nxc4 $16 {[%emt 0:00:07]} Rxc6 {[%emt 0:00:03]} 29. Rd7 $36 {[%emt 0:00:39][%mdl 2048] White is on the roll.} Bf6 {[%emt 0:00:56]} 30. Rfd1 {[%emt 0:00:16]} Kg7 {[%emt 0:00:38]} 31. g3 {[%emt 0:00:39] White is more active.} h5 {[%emt 0:00:38]} 32. h4 {[%emt 0:00:20]} Rb5 {[%emt 0:00:35]} 33. Ra7 {[%emt 0:01:09]} Rf5 {[%emt 0:00:30]} (33... g5 $16) 34. Kg2 {[%emt 0:00:56]} Re6 {[%emt 0:00:10]} 35. Ne3 {[%emt 0:00:53]} (35. f4 $18 {and White stays clearly on top.}) 35... Rc5 {[%emt 0:00:11]} 36. Nc4 {[%emt 0:00:42]} (36. Rd3 $1 $16) 36... Re2 {[%emt 0:00:14]} (36... Rf5 $1 $11) 37. Rd2 {[%emt 0:00:40]} (37. Rb7 Rf5 38. Rf1 Bd4 $11) 37... Re1 {[%emt 0:00:27]} (37... Rxd2 $14 38. Nxd2 Rd5) 38. Rb7 {[%emt 0:00:29]} Ra1 {[%emt 0:01:09] Prevents Ra2.} 39. Re2 {[%emt 0:00:11]} (39. Rxb4 $2 Bc3 40. Rb7 Rxc4 $19 (40... Bxa5 41. Nxa5 Raxa5 42. Rxe7 $16)) ({White should play} 39. f4 $16) 39... g5 $1 $14 {[%emt 0:00:56]} 40. hxg5 {[%emt 0:00:36]} (40. Rxb4 gxh4 41. Re4 hxg3 42. fxg3 Ra2+ 43. Kf3 Rf5+ 44. Rf4 Rc5 $15) 40... Rxg5 {[%emt 0:00:05]} 41. Rxb4 {[%emt 0:06:54]} h4 {[%emt 0:02:14]} 42. Rb7 {[%emt 0:02:22]} hxg3 {[%emt 0:04:04]} 43. fxg3 {[%emt 0:00:05]} Bd4 {[%emt 0:03:37]} 44. Rexe7 {[%emt 0:10:08]} (44. Rbxe7 Rg1+ 45. Kf3 R1xg3+ 46. Ke4 Bc5 $14) 44... Rg1+ $2 {[%emt 0:09:42]} (44... Kg6 $16 {might work better.}) 45. Kf3 $18 {[%emt 0:00:09]} R1xg3+ {[%emt 0:00:39]} 46. Ke4 {[%emt 0:01:10]} Bf6 {[%emt 0:01:18]} 47. Rxf7+ {[%emt 0:03:59]} Kg6 {[%emt 0:00:10] [#]} 48. Rxf6+ $1 {[%emt 0:00:12]} Kxf6 {[%emt 0:00:05][%mdl 4096] Endgame KRR-KRN} 49. a6 {[%emt 0:00:17]} Rg8 {[%emt 0:08:49] [#]} 50. Rb6+ $1 {[%emt 0:04:45]} Ke7 {[%emt 0:00:54] [#]} 51. a7 {[%emt 0:01:28]} (51. Kd5 $1 $18) 51... Ra8 $14 {[%emt 0:01:09]} 52. Ne5 {[%emt 0:00:40]} (52. Rb7+ $1 $14 Ke6 53. Ne3) 52... Rc3 $1 $11 {[%emt 0:01:32]} 53. Kd4 {[%emt 0:04:28]} Rc7 {[%emt 0:00:16][%cal Oc7c1]} 54. Nc6+ {[%emt 0:00:31]} (54. Rh6 {simplifies} Raxa7 55. Nc6+ Rxc6 56. Rxc6 Kd7 57. Kc5) 54... Kd6 $2 {[%emt 0:02:24][%mdl 8192]} (54... Kd7 $1 $11 55. Kd5 Rxc6 56. Rxc6 Rxa7) 55. Ne5+ $2 {[%emt 0:00:30]} (55. Nb8+ $18 Ke7 56. b4) 55... Ke7 $14 {[%emt 0:00:05][%cal Oc7c1]} 56. Nc6+ $2 {[%emt 0:00:01]} (56. Rh6 $14) 56... Kd6 $18 {[%emt 0:00:03]} 57. Rb8 $2 {[%emt 0:01:04] Prevents Rxc6.} ({White must play} 57. Nb8+ $18 Ke7 58. b4) 57... Rcxa7 $11 {[%emt 0:00:45] The position is equal.} 58. Nxa7 {[%emt 0:00:04]} Rxb8 {[%emt 0:00:07]} 59. Kc4 {[%emt 0:00:09] Prevents Rb4+} Kc7 {[%emt 0:01:04]} 60. Nb5+ {[%emt 0:00:05] Blacks defense is rewarded with a draw.   Weighted Error Value: White=0.37/Black=0.26 (precise)   Loses game:     	---       	Black=2      Missed win:     	White=2     	---        Mistake:       	White=6     	Black=6      Inaccurate:     	White=4     	Black=1      OK:         	White=17    	Black=21     Best:        	White=3     	Black=4      Strong:       	White=2     	Black=3} 1/2-1/2

[Event "Frauenbundesliga 2024-25"]
[Site "Germany"]
[Date "2025.01.25"]
[Round "3.4"]
[White "Bashylina, Luisa"]
[Black "Straub, Natalia"]
[Result "1/2-1/2"]
[Annotator "TA"]
[ECO "D06"]
[WhiteElo "2142"]
[BlackElo "2132"]
[PlyCount "55"]
[EventDate "2024.11.06"]
[EventType "team-tourn"]
[EventCountry "GER"]
[SourceTitle "playchess.com"]
[Source "ChessBase"]
[SourceQuality "1"]
[WhiteTeam "SG Solingen"]
[BlackTeam "Schachfreunde Deizisau"]
[TimeControl "40/5400+30:1800+30"]

{[%evp 9,55,50,33,43,52,23,29,36,16,16,25,19,26,10,55,53,50,52,50,9,79,36,59,25,26,45,27,33,41,0,0,0,12,-6,24,0,0,-46,-1,-36,-18,-21,-5,-9,0,0,0,0]} 1. d4 {[%emt 0:00:03]} d5 {[%emt 0:00:06]} 2. c4 {[%emt 0:00:03]} c5 {[%emt 0:00:15]} 3. dxc5 {[%emt 0:04:56]} d4 {[%emt 0:12:02]} 4. Nf3 {[%emt 0:12:22]} Nc6 {[%emt 0:01:32]} 5. e3 {[%emt 0:01:17]} e5 {[%emt 0:18:56][%cal Be7e5,Be5e4][%mdl 32]} 6. exd4 {[%emt 0:01:58] D06: Queen's Gambit: Symmetrical and Baltic Defences.} e4 {[%emt 0:03:31]} 7. Nfd2 $146 {[%emt 0:06:25] [#]} (7. d5 exf3 8. dxc6 Qxd1+ 9. Kxd1 Bg4 10. Kc2 bxc6 11. Be3 Bf5+ 12. Kc1 Be4 13. gxf3 Bxf3 {1-0 Nakamura,H (2520)-Glek,I (2576) Internet Section 14-A blitz 2003 (7)}) 7... Qxd4 {[%emt 0:04:10]} 8. Be2 {[%emt 0:06:40] White has an edge.} Bxc5 {[%emt 0:02:22][%csl Gc5][%cal Rd4f2]} ({Much weaker is} 8... Qxc5 $6 9. Nxe4 Qd4 10. Nbc3 $16) 9. O-O {[%emt 0:00:29]} Qe5 {[%emt 0:05:01]} 10. Nc3 {[%emt 0:04:20]} Nf6 {[%emt 0:04:38]} 11. Nb3 {[%emt 0:04:36]} O-O {[%emt 0:10:01] A sharp opening} 12. Nxc5 {[%emt 0:06:15]} Qxc5 {[%emt 0:00:02]} 13. Be3 {[%emt 0:02:35]} Qe5 {[%emt 0:02:13]} 14. Qc1 {[%emt 0:10:09]} Nd4 {[%emt 0:07:29]} (14... Bg4 $11) 15. Re1 {[%emt 0:07:51]} Nxe2+ {[%emt 0:03:07]} 16. Nxe2 {[%emt 0:00:08]} Ng4 {[%emt 0:00:21]} 17. Bf4 {[%emt 0:00:54] Successful Defense White} Qc5 {[%emt 0:00:06]} 18. Bg3 {[%emt 0:01:25]} f5 {[%emt 0:05:52]} 19. h3 {[%emt 0:06:00]} Ne5 {[%emt 0:03:18]} 20. b4 {[%emt 0:00:53]} Qe7 {[%emt 0:00:23]} 21. Nf4 {[%emt 0:04:42] [#] Hoping for Nd5. Repels Nd3} Be6 {[%emt 0:04:22]} 22. c5 {[%emt 0:01:58]} Bf7 {[%emt 0:00:26]} 23. h4 {[%emt 0:02:19]} (23. Qc3 $11 {should be considered.}) 23... h6 {[%emt 0:01:50]} 24. h5 {[%emt 0:01:25][%cal Of4g6]} Rfe8 {[%emt 0:00:03]} 25. Qc3 {[%emt 0:01:02] The position is equal.} Rad8 {[%emt 0:02:22]} 26. a4 {[%emt 0:09:20]} Nd3 {[%emt 0:02:32]} 27. Nxd3 {[%emt 0:00:54]} Rxd3 {[%emt 0:00:02]} 28. Qxd3 {[%emt 0:03:31] Weighted Error Value: White=0.16 (very precise) /Black=0.14 (very precise)   Mistake:       	White=1     	Black=1      Inaccurate:     	White=6     	Black=3      OK:         	White=7     	Black=9      Best:        	White=1     	Black=1} 1/2-1/2

[Event "Frauenbundesliga 2024-25"]
[Site "Germany"]
[Date "2025.01.25"]
[Round "3.4"]
[White "Wagenschuetz, Evelyn"]
[Black "Koehler, Inken"]
[Result "1-0"]
[Annotator "TA"]
[ECO "B07"]
[WhiteElo "2004"]
[BlackElo "2053"]
[PlyCount "71"]
[EventDate "2024.11.06"]
[EventType "team-tourn"]
[EventCountry "GER"]
[SourceTitle "playchess.com"]
[Source "ChessBase"]
[SourceQuality "1"]
[WhiteTeam "Dippoldiswalde"]
[BlackTeam "Harksheide"]
[TimeControl "40/5400+30:1800+30"]

{[%evp 13,71,33,44,16,4,21,24,15,18,23,22,18,24,17,50,-37,12,13,13,23,22,17,18,23,12,21,22,7,20,0,18,18,8,23,13,16,46,0,0,0,0,0,0,-23,-12,-33,-29,-39,-28,-26,-28,-50,0,0,0,0,315,321,647,646]} 1. e4 {[%emt 0:00:03]} d6 {[%emt 0:00:26]} 2. d4 {[%emt 0:00:10]} Nf6 {[%emt 0:00:05]} 3. Nc3 {[%emt 0:00:12]} Nbd7 {[%emt 0:00:41]} 4. f4 {[%emt 0:00:46]} e5 {[%emt 0:00:50]} 5. Nf3 {[%emt 0:00:54]} exd4 {[%emt 0:03:07]} 6. Qxd4 {[%emt 0:01:09]} c6 {[%emt 0:19:08]} 7. Be3 {[%emt 0:08:58][%cal Bc1e3,Be3d4,Bd4e5][%mdl 32]} d5 {[%emt 0:09:03]} 8. O-O-O {[%emt 0:11:11][%cal Re4d5]} Bc5 {[%emt 0:21:33]} 9. Qd2 {[%emt 0:01:17]} Bb4 {[%emt 0:08:47]} 10. exd5 {[%emt 0:04:21] White has an edge.} Nxd5 {[%emt 0:00:10]} 11. Bd4 {[%emt 0:08:59]} O-O {[%emt 0:02:02]} 12. Bc4 {[%emt 0:10:32]} N7f6 {[%emt 0:07:20]} 13. Bxd5 {[%emt 0:10:30]} Nxd5 {[%emt 0:00:32]} 14. Qf2 {[%emt 0:01:08]} ({Better is} 14. Bxg7 $1 $14 Kxg7 15. Qd4+ Kg8 16. Nxd5 Qxd5 17. Qxb4 Qxa2 18. Rhe1) 14... Qc7 {[%emt 0:08:48]} (14... Nxf4 $2 15. Bxg7 (15. Bxa7 $2 Qa5 $19) 15... Qb6 16. Bd4 $18) (14... f6 $15 {should be considered.}) 15. Nxd5 $11 {[%emt 0:01:50]} (15. Bxa7 $2 Nxc3 (15... Qxf4+ $2 16. Kb1 $19) (15... Nxf4 16. Bc5 $17) 16. bxc3 Ba3+ (16... Bxc3 $2 17. Bd4 $19) (16... Qxf4+ $2 17. Kb2 $19) 17. Kd2 c5 $19 (17... Qxf4+ $2 18. Be3 $19)) 15... cxd5 {[%emt 0:00:03]} 16. Be5 {[%emt 0:02:54]} (16. Bxa7 $2 Bf5 (16... Qxf4+ 17. Kb1 $11) 17. Ne1 Rfc8 $19 (17... Rxa7 $2 18. Qxa7 Bxe1 19. Qa4 $19)) 16... Qc4 {[%emt 0:01:01]} 17. Qd4 {[%emt 0:10:24]} f6 {[%emt 0:03:44]} 18. Qxc4 $1 {[%emt 0:01:58]} dxc4 {[%emt 0:00:02]} 19. Bd6 {[%emt 0:00:10]} Bxd6 {[%emt 0:00:39]} 20. Rxd6 {[%emt 0:00:01]} Bg4 {[%emt 0:01:07]} 21. Nd2 {[%emt 0:00:18]} Rac8 {[%emt 0:01:10]} 22. h3 {[%emt 0:01:11]} Bf5 {[%emt 0:01:34] ...c3 would now be deadly.} 23. g4 {[%emt 0:00:23]} Bg6 {[%emt 0:00:07]} 24. f5 {[%emt 0:03:43]} Bf7 {[%emt 0:00:03]} 25. Rd7 {[%emt 0:05:11]} (25. Ne4 $14) 25... c3 {[%emt 0:02:24]} 26. Ne4 {[%emt 0:00:56]} cxb2+ {[%emt 0:04:15]} 27. Kxb2 {[%emt 0:00:02][%cal Oh1d1]} Be8 {[%emt 0:00:52]} 28. Re7 {[%emt 0:04:20][%cal Oe4d6]} (28. Rxb7 $2 {too greedy.} Bc6 29. Re7 (29. Rxa7 $2 {loses.} Bxe4 30. Rh2 Rc4 $19) 29... Rce8 30. Nxf6+ (30. Rxe8 $2 Rxe8 31. Nxf6+ gxf6 $19) 30... gxf6 $19) 28... Ba4 {[%emt 0:01:49]} 29. Rh2 {[%emt 0:02:17]} Rfe8 {[%emt 0:00:52]} 30. Rxe8+ {[%emt 0:03:17]} Rxe8 {[%emt 0:00:01][%mdl 4096] Endgame. KRB-KRN} 31. Nc5 {[%emt 0:01:00]} Bc6 {[%emt 0:00:23]} 32. Rd2 {[%emt 0:00:15]} Re5 {[%emt 0:01:11]} (32... g6 $1 $15) 33. Rd8+ {[%emt 0:01:24]} Kf7 {[%emt 0:00:47]} 34. Ne6 {[%emt 0:00:08]} Bd5 $2 {[%emt 0:01:28][%mdl 8192]} (34... g6 $11) 35. Rd7+ $18 {[%emt 0:01:06]} Ke8 $2 {[%emt 0:00:25] [#]} (35... Kg8 36. Rxg7+ (36. Nxg7 Bf7 $16) 36... Kh8) 36. Rxd5 $1 {[%emt 0:00:29][%mdl 512] Weighted Error Value: White=0.11 (very precise) /Black=0.42.  Loses game:     	---       	Black=1      Mistake:       	White=2     	Black=3      Inaccurate:     	---       	Black=2      OK:         	White=14    	Black=13     Best:        	White=1     	Black=1      Strong:       	White=1     	---        Brilliant:      	White=1     	---} 1-0